fUST/lending_fUST_20250726
["ID","MTS","AMOUNT","RATE_DAILY","PERIOD"]
[375067712,1753516245706,-151.0,0.0002,2]
[375067715,1753516245721,-153.035382,0.0002,2]
[375067718,1753516245731,-460.0,0.0002,2]
[375067721,1753516245741,-284.43077672,0.00020021,2]
[375067724,1753516245750,-741.23808633,0.00020021,2]
[375067727,1753516245760,-503.75431392,0.00020021,2]
[375067730,1753516245771,-500.0,0.00020021,2]
[375067733,1753516245780,-1000.0,0.00020021,2]
[375067736,1753516245789,-151.0,0.00020053,2]
[375067740,1753516245799,-151.0,0.000201,4]
[375067743,1753516245809,-151.0,0.000201,3]
[375067746,1753516245818,-800.0,0.00020109,2]
[375067749,1753516245827,-270.0,0.00020127,2]
[375067752,1753516245836,-800.0,0.00020172,2]
[375067755,1753516245846,-3866.26617063,0.00020174,2]
[375067758,1753516245855,-235.649663,0.00020187,2]
[375067761,1753516245865,-154.2133676,0.00020192,2]
[375067764,1753516245874,-153.0,0.00020192,2]
[375067767,1753516245883,-153.0,0.00020192,2]
[375067770,1753516245893,-153.0,0.00020192,2]
[375067773,1753516245902,-153.0,0.00020192,2]
[375067776,1753516245912,-151.0,0.000202,4]
[375067779,1753516245921,-151.0,0.000202,3]
[375067781,1753516245931,-2443.0,0.00020238,2]
[375067784,1753516245940,-168.0,0.00020239,2]
[375067787,1753516245949,-168.0,0.00020241,2]
[375067790,1753516245959,-658.0,0.00020255,2]
[375067793,1753516245970,-559.26463792,0.00020265,2]
[375067796,1753516245980,-807.30478346,0.00020266,2]
[375067798,1753516245990,-500.0,0.00020268,2]
[375067800,1753516246000,-224.43881,0.00020273,2]
[375067802,1753516246009,-224.43881,0.00020273,2]
[375067803,1753516246019,-151.0,0.00020273,2]
[375067806,1753516246029,-460.0,0.00020273,2]
[375067807,1753516246039,-560.62,0.00020273,2]
[375067810,1753516246049,-1500.0,0.00020273,7]
[375067812,1753516246058,-1500.0,0.00020273,7]
[375067814,1753516246068,-1500.0,0.00020273,7]
[375067815,1753516246077,-1500.0,0.00020273,7]
[375067817,1753516246087,-151.0,0.00020273,2]
[375067820,1753516246096,-689.53,0.00020273,2]
[375067821,1753516246105,-460.0,0.00020273,2]
[375067823,1753516246115,-460.0,0.00020273,2]
[375067825,1753516246125,-460.0,0.00020273,2]
[375067827,1753516246134,-336.107457,0.00020273,2]
[375067829,1753516246144,-336.107457,0.00020273,2]
[375067831,1753516246154,-460.0,0.00020273,2]
[375067833,1753516246163,-460.0,0.00020273,2]
[375067835,1753516246174,-460.0,0.00020273,2]
[375067837,1753516246183,-460.0,0.00020273,2]
[375067839,1753516246193,-460.0,0.00020273,2]
[375067841,1753516246202,-460.0,0.00020273,2]
[375067843,1753516246212,-254.29528754,0.00020273,2]
[375067845,1753516246221,-747.27,0.00020273,2]
[375067847,1753516246231,-567.57,0.00020273,2]
[375067849,1753516246240,-180.91859,0.00020273,2]
[375067851,1753516246249,-180.91859,0.00020273,2]
[375067853,1753516246258,-460.0,0.00020273,2]
[375067855,1753516246268,-203.954756,0.00020273,2]
[375067857,1753516246278,-460.0,0.00020273,2]
[375067859,1753516246287,-460.0,0.00020273,2]
[375067861,1753516246296,-151.0,0.00020273,2]
[375067863,1753516246305,-460.0,0.00020273,2]
[375067865,1753516246314,-460.0,0.00020273,2]
[375067867,1753516246323,-460.0,0.00020273,2]
[375067869,1753516246332,-472.89,0.00020273,2]
[375067871,1753516246341,-832.96,0.00020273,2]
[375067873,1753516246351,-460.0,0.00020273,2]
[375067875,1753516246360,-460.0,0.00020273,2]
[375067877,1753516246369,-460.0,0.00020273,2]
[375067879,1753516246378,-460.0,0.00020273,2]
[375067881,1753516246388,-460.0,0.00020273,2]
[375067883,1753516246397,-460.0,0.00020273,2]
[375067885,1753516246406,-460.0,0.00020273,2]
[375067887,1753516246416,-460.0,0.00020273,2]
[375067889,1753516246425,-460.0,0.00020273,2]
[375067891,1753516246435,-591.44,0.00020273,2]
[375067893,1753516246444,-226.6172345,0.00020273,2]
[375067895,1753516246454,-460.0,0.00020273,2]
[375067897,1753516246464,-779.67,0.00020273,2]
[375067900,1753516246475,-460.0,0.00020273,2]
[375067902,1753516246484,-918.77,0.00020273,2]
[375067904,1753516246494,-460.0,0.00020273,2]
[375067906,1753516246503,-1194.54,0.00020273,2]
[375067908,1753516246512,-460.0,0.00020273,2]
[375067910,1753516246521,-460.0,0.00020273,2]
[375067912,1753516246531,-460.0,0.00020273,2]
[375067914,1753516246540,-460.0,0.00020273,2]
[375067916,1753516246549,-460.0,0.00020273,2]
[375067918,1753516246558,-479.16,0.00020273,2]
[375067920,1753516246568,-460.0,0.00020273,2]
[375067921,1753516246577,-460.0,0.00020273,2]
[375067923,1753516246587,-460.0,0.00020273,2]
[375067925,1753516246596,-460.0,0.00020273,2]
[375067927,1753516246606,-151.0,0.00020273,2]
[375067929,1753516246615,-460.0,0.00020273,2]
[375067931,1753516246624,-460.0,0.00020273,2]
[375067933,1753516246634,-680.97,0.00020273,2]
[375067935,1753516246643,-151.0,0.00020273,2]
[375067937,1753516246652,-151.0,0.00020273,2]
[375067939,1753516246661,-1126.82,0.00020273,2]
[375067941,1753516246671,-1133.62,0.00020273,2]
[375067943,1753516246680,-721.47,0.00020273,2]
[375067945,1753516246690,-460.0,0.00020273,2]
[375067947,1753516246699,-460.0,0.00020273,2]
[375067949,1753516246713,-169.8128912,0.00020273,2]
[375067951,1753516246723,-460.0,0.00020273,2]
[375067953,1753516246733,-460.0,0.00020273,2]
[375067955,1753516246742,-573.43251099,0.00020273,2]
[375067957,1753516246753,-267.0868317,0.00020273,2]
[375067959,1753516246762,-460.0,0.00020273,2]
[375067961,1753516246772,-1027.66,0.00020273,2]
[375067963,1753516246782,-487.360106,0.00020273,2]
[375067965,1753516246791,-460.0,0.00020273,2]
[375067967,1753516246800,-3432.76,0.00020273,2]
[375067969,1753516246809,-460.0,0.00020273,2]
[375067971,1753516246819,-460.0,0.00020273,2]
[375067973,1753516246828,-827.92,0.00020273,2]
[375067975,1753516246838,-151.0,0.00020273,2]
[375067977,1753516246848,-151.0,0.00020273,2]
[375067979,1753516246857,-460.0,0.00020273,2]
[375067981,1753516246867,-460.0,0.00020273,2]
[375067983,1753516246878,-460.0,0.00020273,2]
[375067985,1753516246888,-151.0,0.00020273,2]
[375067987,1753516246898,-151.0,0.00020273,2]
[375067989,1753516246907,-465.80960585,0.00020273,2]
[375067991,1753516246916,-460.0,0.00020273,2]
[375067993,1753516246925,-460.0,0.00020273,2]
[375067995,1753516246934,-151.0,0.00020273,2]
[375067997,1753516246944,-151.0,0.00020273,2]
[375067999,1753516246953,-460.0,0.00020273,2]
[375068001,1753516246962,-663.45,0.00020273,2]
[375068003,1753516246973,-460.0,0.00020273,2]
[375068005,1753516246982,-2556.3,0.00020273,2]
[375068007,1753516246991,-460.0,0.00020273,2]
[375068009,1753516247001,-631.19,0.00020273,2]
[375068011,1753516247010,-460.0,0.00020273,2]
[375068013,1753516247019,-460.0,0.00020273,2]
[375068015,1753516247029,-540.52,0.00020273,2]
[375068016,1753516247039,-1298.13,0.00020273,2]
[375068019,1753516247048,-460.0,0.00020273,2]
[375068020,1753516247058,-3365.59,0.00020273,2]
[375068022,1753516247067,-460.0,0.00020273,2]
[375068024,1753516247076,-1004.04,0.00020273,2]
[375068026,1753516247088,-2952.07,0.00020273,2]
[375068028,1753516247099,-1605.71,0.00020273,2]
[375068030,1753516247110,-460.0,0.00020273,2]
[375068032,1753516247119,-7636.01,0.00020273,2]
[375068035,1753516247129,-179.09413915,0.00020273,2]
[375068037,1753516247139,-1011.29,0.00020273,2]
[375068039,1753516247151,-460.0,0.00020273,2]
[375068041,1753516247161,-590.67,0.00020273,2]
[375068042,1753516247171,-319.29680335,0.00020273,2]
[375068044,1753516247181,-1730.89,0.00020273,2]
[375068046,1753516247191,-975.6,0.00020273,2]
[375068048,1753516247200,-460.0,0.00020273,2]
[375068050,1753516247209,-460.0,0.00020273,2]
[375068052,1753516247221,-511.0,0.00020273,2]
[375068055,1753516247231,-460.0,0.00020273,2]
[375068056,1753516247241,-460.0,0.00020273,2]
[375068059,1753516247250,-1335.38,0.00020273,2]
[375068060,1753516247260,-460.0,0.00020273,2]
[375068063,1753516247270,-869.79,0.00020273,2]
[375068064,1753516247279,-460.0,0.00020273,2]
[375068066,1753516247288,-460.0,0.00020273,2]
[375068068,1753516247298,-2130.65,0.00020273,2]
[375068070,1753516247307,-1183.08,0.00020273,2]
[375068072,1753516247316,-460.0,0.00020273,2]
[375068074,1753516247325,-1039.07,0.00020273,2]
[375068076,1753516247335,-460.0,0.00020273,2]
[375068078,1753516247345,-460.0,0.00020273,2]
[375068080,1753516247354,-460.0,0.00020273,2]
[375068082,1753516247365,-1147.2,0.00020273,2]
[375068084,1753516247375,-4207.98,0.00020273,2]
[375068086,1753516247384,-460.0,0.00020273,2]
[375068088,1753516247394,-479.81,0.00020273,2]
[375068090,1753516247403,-717.69,0.00020273,2]
[375068092,1753516247412,-578.2333666,0.00020273,2]
[375068094,1753516247422,-622.93,0.00020273,2]
[375068096,1753516247431,-842.94,0.00020273,2]
[375068098,1753516247442,-2462.99,0.00020273,2]
[375068100,1753516247451,-1092.57,0.00020273,2]
[375068102,1753516247460,-1008.46,0.00020273,2]
[375068104,1753516247471,-792.61,0.00020273,2]
[375068106,1753516247481,-3718.74,0.00020273,2]
[375068108,1753516247490,-460.0,0.00020273,2]
[375068110,1753516247500,-713.43,0.00020273,2]
[375068112,1753516247510,-1609.07,0.00020273,2]
[375068114,1753516247520,-460.0,0.00020273,2]
[375068116,1753516247529,-460.0,0.00020273,2]
[375068118,1753516247539,-460.0,0.00020273,2]
[375068120,1753516247549,-878.63,0.00020273,2]
[375068122,1753516247560,-460.0,0.00020273,2]
[375068124,1753516247569,-460.0,0.00020273,2]
[375068126,1753516247579,-2301.15,0.00020273,2]
[375068128,1753516247588,-460.0,0.00020273,2]
[375068130,1753516247598,-460.0,0.00020273,2]
[375068132,1753516247607,-3235.31,0.00020273,2]
[375068134,1753516247617,-3372.54,0.00020273,2]
[375068136,1753516247627,-2005.83,0.00020273,2]
[375068138,1753516247636,-10838.37,0.00020273,2]
[375068140,1753516247645,-460.0,0.00020273,2]
[375068142,1753516247655,-1124.3,0.00020273,2]
[375068144,1753516247664,-728.84,0.00020273,2]
[375068146,1753516247674,-460.0,0.00020273,2]
[375068148,1753516247683,-909.43,0.00020273,2]
[375068159,1753516247787,-1305.5,0.00020273,2]
[375068161,1753516247797,-460.0,0.00020273,2]
[375068163,1753516247806,-460.0,0.00020273,2]
[375068165,1753516247815,-460.0,0.00020273,2]
[375068167,1753516247824,-460.0,0.00020273,2]
[375068169,1753516247833,-1198.72,0.00020273,2]
[375068171,1753516247843,-390.70756936,0.00020273,2]
[375068173,1753516247852,-460.0,0.00020273,2]
[375068175,1753516247861,-1659.55,0.00020273,2]
[375068177,1753516247870,-460.0,0.00020273,2]
[375068179,1753516247879,-546.0,0.00020274,2]
[375068181,1753516247889,-557.0,0.00020274,2]
[375068183,1753516247898,-153.0,0.00020274,2]
[375068185,1753516247907,-153.0,0.00020274,2]
[375068187,1753516247915,-153.0,0.00020274,2]
[375068189,1753516247924,-153.0,0.00020274,2]
[375068191,1753516247933,-153.0,0.00020274,2]
[375068193,1753516247943,-153.0,0.00020274,2]
[375068195,1753516247952,-153.0,0.00020274,2]
[375068197,1753516247961,-153.0,0.00020274,2]
[375068199,1753516247971,-153.0,0.00020274,2]
[375068201,1753516247981,-153.0,0.00020274,2]
[375068203,1753516247991,-153.0,0.00020274,2]
[375068205,1753516248001,-153.0,0.00020274,2]
[375068207,1753516248010,-153.0,0.00020274,2]
[375068209,1753516248019,-153.0,0.00020274,2]
[375068211,1753516248032,-151.0,0.00020277,2]
[375068213,1753516248044,-506.74926842,0.00020321,2]
[375068214,1753516248053,-1000.0,0.00020321,2]
[375068215,1753516248061,-1000.0,0.00020321,2]
[375068216,1753516248078,-502.78453576,0.00020321,2]
[375068217,1753516248089,-1000.0,0.00020321,2]
[375068218,1753516248098,-1000.0,0.00020321,2]
[375068219,1753516248107,-658.0,0.00020404,2]
[375068220,1753516248116,-160.0,0.00020455,2]
[375068221,1753516248126,-2049.82,0.00020496,3]
[375068222,1753516248135,-160.0,0.000205,3]
[375068223,1753516248143,-270.0,0.00020535,2]
[375068224,1753516248152,-223.0315306,0.00020535,2]
[375068226,1753516248162,-224.43881,0.00020547,2]
[375068228,1753516248171,-224.43881,0.00020547,2]
[375068230,1753516248181,-460.0,0.00020547,2]
[375068232,1753516248190,-560.62,0.00020547,2]
[375068234,1753516248200,-151.0,0.00020547,2]
[375068236,1753516248210,-689.53,0.00020547,2]
[375068238,1753516248219,-460.0,0.00020547,2]
[375068240,1753516248229,-460.0,0.00020547,2]
[375068242,1753516248238,-460.0,0.00020547,2]
[375068244,1753516248247,-336.107457,0.00020547,2]
[375068246,1753516248256,-460.0,0.00020547,2]
[375068248,1753516248266,-460.0,0.00020547,2]
[375068250,1753516248275,-460.0,0.00020547,2]
[375068252,1753516248284,-460.0,0.00020547,2]
[375068254,1753516248294,-460.0,0.00020547,2]
[375068256,1753516248304,-460.0,0.00020547,2]
[375068258,1753516248313,-747.27,0.00020547,2]
[375068260,1753516248322,-567.57,0.00020547,2]
[375068262,1753516248332,-180.91859,0.00020547,2]
[375068264,1753516248342,-180.91859,0.00020547,2]
[375068266,1753516248351,-460.0,0.00020547,2]
[375068268,1753516248361,-460.0,0.00020547,2]
[375068270,1753516248370,-460.0,0.00020547,2]
[375068272,1753516248379,-151.0,0.00020547,2]
[375068274,1753516248389,-460.0,0.00020547,2]
[375068276,1753516248398,-460.0,0.00020547,2]
[375068278,1753516248407,-460.0,0.00020547,2]
[375068280,1753516248417,-472.89,0.00020547,2]
[375068282,1753516248426,-832.96,0.00020547,2]
[375068284,1753516248436,-460.0,0.00020547,2]
[375068286,1753516248445,-460.0,0.00020547,2]
[375068288,1753516248454,-460.0,0.00020547,2]
[375068290,1753516248464,-460.0,0.00020547,2]
[375068292,1753516248473,-197.26026755,0.00020547,2]
[375068294,1753516248483,-460.0,0.00020547,2]
[375068296,1753516248492,-460.0,0.00020547,2]
[375068298,1753516248502,-460.0,0.00020547,2]
[375068300,1753516248511,-591.44,0.00020547,2]
[375068302,1753516248521,-460.0,0.00020547,2]
[375068304,1753516248530,-779.67,0.00020547,2]
[375068306,1753516248541,-569.79748834,0.00020547,2]
[375068308,1753516248550,-918.77,0.00020547,2]
[375068310,1753516248559,-460.0,0.00020547,2]
[375068312,1753516248569,-1194.54,0.00020547,2]
[375068314,1753516248578,-460.0,0.00020547,2]
[375068316,1753516248588,-460.0,0.00020547,2]
[375068318,1753516248597,-460.0,0.00020547,2]
[375068320,1753516248607,-479.16,0.00020547,2]
[375068322,1753516248616,-460.0,0.00020547,2]
[375068324,1753516248625,-460.0,0.00020547,2]
[375068326,1753516248635,-460.0,0.00020547,2]
[375068328,1753516248644,-460.0,0.00020547,2]
[375068330,1753516248653,-460.0,0.00020547,2]
[375068332,1753516248663,-460.0,0.00020547,2]
[375068334,1753516248672,-680.97,0.00020547,2]
[375068336,1753516248682,-151.0,0.00020547,2]
[375068338,1753516248691,-1126.82,0.00020547,2]
[375068340,1753516248700,-1133.62,0.00020547,2]
[375068342,1753516248714,-721.47,0.00020547,2]
[375068344,1753516248724,-460.0,0.00020547,2]
[375068346,1753516248734,-460.0,0.00020547,2]
[375068348,1753516248743,-460.0,0.00020547,2]
[375068350,1753516248754,-460.0,0.00020547,2]
[375068352,1753516248763,-460.0,0.00020547,2]
[375068354,1753516248773,-1027.66,0.00020547,2]
[375068356,1753516248782,-591.48669691,0.00020547,2]
[375068358,1753516248792,-3432.76,0.00020547,2]
[375068360,1753516248801,-514.24506758,0.00020547,2]
[375068362,1753516248811,-464.88709639,0.00020547,2]
[375068364,1753516248821,-827.92,0.00020547,2]
[375068366,1753516248831,-151.0,0.00020547,2]
[375068368,1753516248840,-460.0,0.00020547,2]
[375068370,1753516248849,-460.0,0.00020547,2]
[375068372,1753516248858,-460.0,0.00020547,2]
[375068374,1753516248867,-151.0,0.00020547,2]
[375068376,1753516248877,-460.0,0.00020547,2]
[375068378,1753516248888,-460.0,0.00020547,2]
[375068380,1753516248897,-151.0,0.00020547,2]
[375068382,1753516248907,-460.0,0.00020547,2]
[375068384,1753516248916,-663.45,0.00020547,2]
[375068386,1753516248925,-460.0,0.00020547,2]
[375068388,1753516248935,-2556.3,0.00020547,2]
[375068390,1753516248945,-460.0,0.00020547,2]
[375068392,1753516248954,-631.19,0.00020547,2]
[375068394,1753516248963,-460.0,0.00020547,2]
[375068396,1753516248974,-460.0,0.00020547,2]
[375068398,1753516248983,-540.52,0.00020547,2]
[375068400,1753516248992,-1298.13,0.00020547,2]
[375068403,1753516249005,-460.0,0.00020547,2]
[375068405,1753516249015,-3365.59,0.00020547,2]
[375068407,1753516249024,-466.52895291,0.00020547,2]
[375068409,1753516249033,-1004.04,0.00020547,2]
[375068411,1753516249042,-2952.07,0.00020547,2]
[375068413,1753516249052,-1605.71,0.00020547,2]
[375068415,1753516249060,-460.0,0.00020547,2]
[375068417,1753516249070,-7636.01,0.00020547,2]
[375068419,1753516249079,-1011.29,0.00020547,2]
[375068421,1753516249088,-1730.89,0.00020547,2]
[375068423,1753516249098,-975.6,0.00020547,2]
[375068425,1753516249107,-460.0,0.00020547,2]
[375068427,1753516249119,-460.0,0.00020547,2]
[375068429,1753516249128,-511.0,0.00020547,2]
[375068431,1753516249138,-460.0,0.00020547,2]
[375068433,1753516249147,-460.0,0.00020547,2]
[375068435,1753516249156,-1335.38,0.00020547,2]
[375068437,1753516249166,-460.0,0.00020547,2]
[375068438,1753516249175,-869.79,0.00020547,2]
[375068440,1753516249184,-460.0,0.00020547,2]
[375068442,1753516249194,-460.0,0.00020547,2]
[375068444,1753516249203,-2130.65,0.00020547,2]
[375068446,1753516249212,-1183.08,0.00020547,2]
[375068448,1753516249224,-460.0,0.00020547,2]
[375068450,1753516249234,-1039.07,0.00020547,2]
[375068452,1753516249244,-460.0,0.00020547,2]
[375068454,1753516249253,-460.0,0.00020547,2]
[375068456,1753516249262,-460.0,0.00020547,2]
[375068458,1753516249271,-1147.2,0.00020547,2]
[375068459,1753516249281,-4207.98,0.00020547,2]
[375068461,1753516249291,-460.0,0.00020547,2]
[375068463,1753516249300,-479.81,0.00020547,2]
[375068465,1753516249310,-717.69,0.00020547,2]
[375068467,1753516249320,-622.93,0.00020547,2]
[375068469,1753516249330,-842.94,0.00020547,2]
[375068471,1753516249339,-2462.99,0.00020547,2]
[375068473,1753516249349,-1092.57,0.00020547,2]
[375068475,1753516249361,-1008.46,0.00020547,2]
[375068477,1753516249373,-792.61,0.00020547,2]
[375068479,1753516249383,-3718.74,0.00020547,2]
[375068482,1753516249397,-460.0,0.00020547,2]
[375068483,1753516249407,-713.43,0.00020547,2]
[375068485,1753516249418,-1609.07,0.00020547,2]
[375068487,1753516249427,-460.0,0.00020547,2]
[375068489,1753516249437,-460.0,0.00020547,2]
[375068491,1753516249446,-460.0,0.00020547,2]
[375068493,1753516249455,-878.63,0.00020547,2]
[375068495,1753516249465,-460.0,0.00020547,2]
[375068498,1753516249476,-460.0,0.00020547,2]
[375068499,1753516249486,-2301.15,0.00020547,2]
[375068501,1753516249496,-460.0,0.00020547,2]
[375068503,1753516249505,-460.0,0.00020547,2]
[375068505,1753516249515,-3235.31,0.00020547,2]
[375068508,1753516249524,-3372.54,0.00020547,2]
[375068509,1753516249534,-2005.83,0.00020547,2]
[375068511,1753516249543,-10838.37,0.00020547,2]
[375068513,1753516249553,-460.0,0.00020547,2]
[375068515,1753516249563,-1124.3,0.00020547,2]
[375068518,1753516249572,-728.84,0.00020547,2]
[375068519,1753516249582,-460.0,0.00020547,2]
[375068521,1753516249591,-909.43,0.00020547,2]
[375068523,1753516249600,-1305.5,0.00020547,2]
[375068526,1753516249610,-460.0,0.00020547,2]
[375068527,1753516249621,-460.0,0.00020547,2]
[375068529,1753516249631,-460.0,0.00020547,2]
[375068531,1753516249640,-460.0,0.00020547,2]
[375068533,1753516249650,-1198.72,0.00020547,2]
[375068535,1753516249659,-460.0,0.00020547,2]
[375068537,1753516249668,-1659.55,0.00020547,2]
[375068539,1753516249677,-460.0,0.00020547,2]
[375068541,1753516249687,-546.0,0.00020548,2]
[375068543,1753516249697,-557.0,0.00020548,2]
[375068545,1753516249707,-224.43881,0.00020548,2]
[375068547,1753516249721,-224.43881,0.00020548,2]
[375068549,1753516249731,-1500.0,0.00020568,2]
[375068551,1753516249740,-10329.20846264,0.00020657,2]
[375068573,1753516249944,-12253.21932818,0.00020657,2]
[375068575,1753516249957,-5628.8639964,0.00020657,2]
[375068577,1753516249969,-4997.28227956,0.00020657,2]
[375068658,1753516250759,-553.87,0.00019178,2]
[375068660,1753516250769,-460.0,0.00019178,2]
[375068661,1753516250778,-460.0,0.00019178,2]
[375068663,1753516250788,-5569.41604683,0.00020657,2]
[375068666,1753516250801,-6311.20455723,0.00020657,2]
[375068668,1753516250812,-1013.04529743,0.00020657,2]
[375068705,1753516251166,-462.54360865,0.00019178,2]
[375068706,1753516251175,-21.6299044,0.00019178,2]
[375068712,1753516251220,-441.407567,0.00019178,2]
[375068714,1753516251229,-556.12,0.00019178,2]
[375068716,1753516251239,-460.0,0.00019178,2]
[375068718,1753516251249,-500.0,0.00019452,2]
[375068720,1753516251258,-150.0,0.00019714,2]
[375068722,1753516251267,-123.02629898,0.00019726,2]
[375068850,1753516252740,-376.97370102,0.00019726,2]
[375068852,1753516252749,-151.0,0.00020239,2]
[375068854,1753516252760,-3897.76003173,0.00020657,2]
[375068856,1753516252769,-151.0,0.00020657,2]
[375068858,1753516252778,-336.107457,0.00020657,2]
[375068860,1753516252788,-180.91859,0.00020657,2]
[375068862,1753516252797,-180.91859,0.00020657,2]
[375068864,1753516252807,-151.0,0.00020657,2]
[375068866,1753516252816,-328.9,0.00020659,3]
[375068868,1753516252826,-270.0,0.00020689,2]
[375068870,1753516252835,-270.0,0.00020759,2]
[375068872,1753516252844,-224.43881,0.00020821,2]
[375068874,1753516252854,-224.43881,0.00020821,2]
[375068876,1753516252863,-346.25569354,0.00020821,2]
[375068878,1753516252872,-560.62,0.00020821,2]
[375068880,1753516252882,-199.404276,0.00020821,2]
[375068882,1753516252891,-689.53,0.00020821,2]
[375068884,1753516252901,-460.0,0.00020821,2]
[375068886,1753516252910,-460.0,0.00020821,2]
[375068888,1753516252919,-460.0,0.00020821,2]
[375068890,1753516252928,-336.107457,0.00020821,2]
[375068891,1753516252937,-460.0,0.00020821,2]
[375068893,1753516252947,-544.09154767,0.00020821,2]
[375068895,1753516252957,-576.25984744,0.00020821,2]
[375068897,1753516252968,-460.0,0.00020821,2]
[375068899,1753516252977,-11.25205502,0.00020821,2]
[375069333,1753516366436,221.381637,0.00013699,2]
[375069384,1753517237240,-150.0,0.000189,2]
[375069385,1753517237266,-241.62799201,0.00019078,2]
[375069386,1753517237295,-215.0738,0.00019166,2]
[375069387,1753517237319,-328.04,0.00019168,3]
[375069388,1753517237350,-500.0,0.00019173,2]
[375069389,1753517237379,-243.0,0.00019177,2]
[375069390,1753517237407,-300.0,0.00019177,2]
[375069391,1753517237434,-166.10397155,0.00019177,2]
[375069392,1753517237459,-468.92015285,0.00019178,2]
[375069393,1753517237487,-460.0,0.00019178,2]
[375069394,1753517237513,-460.0,0.00019178,2]
[375069395,1753517237545,-460.0,0.00019178,2]
[375069396,1753517237571,-464.65356369,0.00019178,2]
[375069397,1753517237598,-460.0,0.00019178,2]
[375069398,1753517237626,-471.25117022,0.00019178,2]
[375069399,1753517237657,-460.0,0.00019178,2]
[375069400,1753517237683,-329.21606791,0.00019178,2]
[375069401,1753517237710,-460.0,0.00019178,2]
[375069402,1753517237739,-460.0,0.00019178,2]
[375069403,1753517237765,-460.0,0.00019178,2]
[375069404,1753517237791,-462.21699562,0.00019178,2]
[375069405,1753517237817,-469.48150623,0.00019178,2]
[375069406,1753517237843,-460.0,0.00019178,2]
[375069407,1753517237869,-460.0,0.00019178,2]
[375069408,1753517237895,-461.06430704,0.00019178,2]
[375069409,1753517237916,-462.38341549,0.00019178,2]
[375069410,1753517237936,-460.0,0.00019178,2]
[375069411,1753517238114,-461.24724594,0.00019178,2]
[375069412,1753517238136,-460.0,0.00019178,2]
[375069413,1753517238161,-464.54443065,0.00019178,2]
[375069414,1753517238182,-464.3121654,0.00019178,2]
[375069415,1753517238202,-464.51550567,0.00019178,2]
[375069416,1753517238222,-460.0,0.00019178,2]
[375069417,1753517238242,-460.0,0.00019178,2]
[375069418,1753517238262,-460.0,0.00019178,2]
[375069419,1753517238282,-460.0,0.00019178,2]
[375069420,1753517238305,-460.0,0.00019178,2]
[375069421,1753517238327,-461.16073628,0.00019178,2]
[375069422,1753517238348,-460.0,0.00019178,2]
[375069423,1753517238369,-468.36191498,0.00019178,2]
[375069424,1753517238391,-460.0,0.00019178,2]
[375069425,1753517238411,-460.0,0.00019178,2]
[375069426,1753517238431,-460.0,0.00019178,2]
[375069427,1753517238452,-460.0,0.00019178,2]
[375069428,1753517238474,-460.0,0.00019178,2]
[375069429,1753517238494,-410.64083214,0.00019178,2]
[375069430,1753517238515,-462.49005568,0.00019178,2]